Cogmind - Beta 13 @@@ ROGUE MODE // 2024.04.05 @ 01:04:15 Player: Lucaspec72 Result: Destroyed by Y-45 Defender with Beam Rifle Performance ------------- Evolutions (1) 500 Regions Visited (3) 600 Robots Destroyed (13) 65 Value Destroyed (273) 273 Prototype IDs (0) 0 Alien Tech Used (0) 0 Bonus (0) 0 TOTAL SCORE: 1438 Bonus ------- None Cogmind --------- Core Integrity 0/400 Matter 195/300 Energy 100/100 System Corruption 0% Temperature Cool (9) Movement Core (200) Ox3 Location -9/Storage Parts ------- > --- POWER (1) -------- (None) > --- PROPULSION (2) --- (None) > --- UTILITY (2) ------ Drone Bay (2/2) Drone Bay (0/2) > --- WEAPON (4) ------- (None) > --- INVENTORY (5) ---- (None) Peak State ------------ > --- POWER ------------ Light Nuclear Core > --- PROPULSION ------- Flight Unit Flight Unit > --- UTILITY ---------- Visual Processing Unit Sensor Array > --- WEAPON ----------- Small Laser Small Laser Small Laser > --- INVENTORY -------- Ion Engine Improved Hover Unit Field Recycling Unit [Rating: 11] Favorites ----------- Power Light Ion Engine Engine Light Ion Engine Power Core Light Nuclear Core Propulsion Wheel Wheel Wheel Hover Unit Hover Unit Flight Unit Flight Unit Utility Huge Storage Unit Device Sensor Array Storage Huge Storage Unit Processor Visual Processing Unit Weapon Light Assault Rifle Energy Gun Small Laser Ballistic Gun Light Assault Rifle Launcher Grenade Launcher Build | -11 -10 -9 -9 ------- Run | Yrd Mat Mat Sto Slots Evolved 2 | . . 2 . Power . | . . . . Propulsion . | . . . . Utility . | . . . . Weapon 2 | . . 2 . Parts Attached 27 | 5 11 3 8 Power 4 | 1 2 . 1 Engine 3 | 1 1 . 1 Core 1 | . 1 . . Reactor . | . . . . Propulsion 9 | 2 4 2 1 Treads . | . . . . Leg . | . . . . Wheel 4 | 2 2 . . Hover 3 | . 2 . 1 Flight 2 | . . 2 . Utility 6 | . 3 1 2 Device 3 | . . 1 2 Storage 2 | . 2 . . Processor 1 | . 1 . . Hackware . | . . . . Protection . | . . . . Artifact . | . . . . Weapon 8 | 2 2 . 4 Energy Gun 4 | . . . 4 Energy Cannon . | . . . . Ballistic Gun 3 | 2 1 . . Ballistic Cannon . | . . . . Launcher 1 | . 1 . . Special Weapon . | . . . . Impact Weapon . | . . . . Slashing Weapon . | . . . . Piercing Weapon . | . . . . Special Melee Weapon . | . . . . Unidentified Prototypes . | . . . . Parts Lost 19 | . 8 1 10 Power 4 | . 2 . 2 Propulsion 7 | . 4 . 3 Utility 1 | . . . 1 Weapon 7 | . 2 1 4 Highest Loss Streak 10 | . 5 1 10 To Critical Strikes . | . . . . Average Slot Usage (%) 71 | . 83 58 40 Engine 7 | . 11 . 2 Core 4 | . 1 11 4 Wheel 16 | . 24 6 . Flight 2 | . . 8 6 Device 2 | . . 4 8 Storage 10 | . 13 6 . Processor 6 | . 3 11 9 Energy Gun 1 | . . . 10 Ballistic Gun 13 | . 18 10 . Launcher 5 | . 8 . . Naked Turns . | . . . . Heaviest Build 87 | 6 87 86 12 Greatest Support 20 | 20 20 10 8 Greatest Overweight (x) 14 | . 14 8 3 Average Overweight (x) 2 | . 4 4 . Largest Inventory Capacity 25 | 5 25 25 5 Average Capacity 18 | 5 24 17 5 Most Carried 6 | 2 6 3 5 Average Carried 2 | . 3 2 1 Final Capacity 25 | 5 25 5 5 Final Carried 3 | 2 3 2 . Class Distribution -------------------- 85% | Mutant 10% | Scavenger-Mutant 4% | Skirmisher Dominant Class ---------------- Mutant | -10/Materials Mutant | -9/Materials Skirmisher | -9/Storage Resources | -11 -10 -9 -9 ----------- Run | Yrd Mat Mat Sto Matter Collected 441 | 286 106 49 . Remotely . | . . . . Salvage Created 349 | 59 134 . 156 Parts 27 | 5 14 . 8 Haulers Intercepted . | . . . . Recyclers Shooed . | . . . . Parts Field Recycled . | . . . . Retrieved Matter . | . . . . Parts Self-Destructed . | . . . . Prevented . | . . . . Kills | -11 -10 -9 -9 ------- Run | Yrd Mat Mat Sto Combat Hostiles Destroyed 11 | 1 5 . 5 Guns 8 | 1 2 . 5 AOE 3 | . 3 . . Classes Destroyed 6 | 2 2 . 2 Worker 1 | 1 . . . Watcher 1 | . 1 . . Swarmer 6 | . 3 . 3 Grunt 3 | 1 2 . . Brawler 1 | . . . 1 Sentry 1 | . . . 1 Best Kill Streak 5 | 1 3 . 5 Combat Bots Only 5 | 1 3 . 5 Max Kills in Single Turn 3 | 1 3 . 2 Gunslinging 1 | . . . 1 Exploded 3 | . 3 . . Melee . | . . . . Uniques/NPCs Destroyed . | . . . . Combat | -11 -10 -9 -9 -------- Run | Yrd Mat Mat Sto Hostile Shots Fired 193 | 5 75 6 107 Missed 49 | 1 21 3 24 Damage Taken 1624 | 45 680 47 852 Core 537 | 23 111 14 389 Absorbed by Shields . | . . . . Core Remaining (%) 68 | 90 46 . . Volleys Fired 47 | 9 31 . 7 Largest 4 | 2 2 . 4 Hottest 160 | 40 50 . 160 Shots Fired 91 | 18 49 . 24 Gun 90 | 18 48 . 24 Cannon . | . . . . Launcher 1 | . 1 . . Special . | . . . . Kinetic 66 | 18 48 . . Thermal 24 | . . . 24 Explosive 1 | . 1 . . Electromagnetic . | . . . . Robot Hit Streak 5 | 2 5 . 4 Robot Miss Streak 9 | 3 9 . 4 Penetration Max . | . . . . Secondary Targets 4 | . . . 4 Max Gunslinging Chain 2 | . . . 2 Shots Hit Robots 49 | 9 26 . 14 Core Hits 24 | 4 13 . 7 Critical Kills . | . . . . Critical Parts Destroyed 1 | . 1 . . Critical Strikes 1 | . 1 . . Destroy 1 | . 1 . . Melee Attacks . | . . . . Impact . | . . . . Slashing . | . . . . Piercing . | . . . . Sneak Attacks . | . . . . Combat Hostiles . | . . . . Follow-up Attacks . | . . . . Damage Inflicted 615 | 80 350 . 185 Guns 516 | 80 251 . 185 Cannons . | . . . . Explosions 99 | . 99 . . Melee . | . . . . Ramming . | . . . . Kinetic 331 | 80 251 . . Thermal 185 | . . . 185 Explosive 99 | . 99 . . Electromagnetic . | . . . . Impact . | . . . . Slashing . | . . . . Piercing . | . . . . Highest Corruption . | . . . . Average Corruption . | . . . . Corruption Purged . | . . . . Corruption Blocked . | . . . . Overload Shots . | . . . . Overflow Damage . | . . . . Projectiles . | . . . . Explosions . | . . . . Melee . | . . . . Knockbacks . | . . . . Impact . | . . . . Kinetic . | . . . . Secondary . | . . . . Self-Inflicted Damage . | . . . . Shots . | . . . . Rammed 1 | . . . 1 Targets Rammed 1 | . . . 1 Kicked . | . . . . Crushed . | . . . . Highest Temperature 527 | 12 18 . 527 Average Temperature 193 | 7 8 . 287 Received Heat Transfer 663 | 24 348 9 282 Effects 4 | . . . 4 Matter Decay 1 | . . . 1 Short Circuit 1 | . . . 1 Damage (major) 2 | . . . 2 Siege Activations . | . . . . Robots Corrupted . | . . . . Combat Hostiles . | . . . . Parts Fried . | . . . . Impact Corruptions . | . . . . Robots Melted . | . . . . Combat Hostiles . | . . . . Parts Melted . | . . . . Heat Transferred 425 | . . . 425 Parts Sabotaged . | . . . . Parts Stolen . | . . . . Parts Stripped . | . . . . Power Chain Reactions . | . . . . Alert | -11 -10 -9 -9 ------- Run | Yrd Mat Mat Sto Peak Influence 164 | 25 164 31 111 Initial 16 | . 16 1 8 Average 32 | 4 47 2 48 Maximum Alert Level . | . . . . Low Security (%) 100 | 100 100 100 100 Level 1 . | . . . . Level 2 . | . . . . Level 3 . | . . . . Level 4 . | . . . . Level 5 . | . . . . High Security . | . . . . Max Security . | . . . . Squads Dispatched 1 | . . . 1 Investigation . | . . . . Extermination . | . . . . Reinforcement 1 | . . . 1 Assault . | . . . . Garrison . | . . . . Intercept . | . . . . Searches Triggered . | . . . . Construction Impeded . | . . . . Haulers Reinforced . | . . . . Active Scanning Responses . | . . . . Cargo Convoy Interrupts . | . . . . Stealth | -11 -10 -9 -9 --------- Run | Yrd Mat Mat Sto Distress Signals 2 | . 2 . . Communications Jammed . | . . . . Distress Signals . | . . . . Times Spotted 33 | 1 12 3 17 Peak Tracking Total 9 | 1 4 2 9 Tactical Retreats 3 | . 1 . 2 Traps | -11 -10 -9 -9 ------- Run | Yrd Mat Mat Sto Traps Triggered 1 | . 1 . . Indirectly . | . . . . Trap Hack Attempts . | . . . . Triggered . | . . . . Disarmed . | . . . . Reprogrammed . | . . . . Reused . | . . . . Traps Extracted . | . . . . Installed . | . . . . Triggered . | . . . . Machines | -11 -10 -9 -9 ---------- Run | Yrd Mat Mat Sto Machines Disabled . | . . . . Max in Single Turn . | . . . . Machines Repaired . | . . . . Machines Dismantled . | . . . . Machines Sabotaged . | . . . . Overloaded Fab Kills . | . . . . Hacking | -11 -10 -9 -9 --------- Run | Yrd Mat Mat Sto Machines Accessed 5 | . 3 . 2 Terminals 5 | . 3 . 2 Fabricators . | . . . . Repair Stations . | . . . . Recycling Units . | . . . . Scanalyzers . | . . . . Garrison Access . | . . . . Total Hacks 10 | . 7 . 3 Successful 7 | . 5 . 2 Failed 3 | . 2 . 1 Catastrophic 2 | . 1 . 1 Database Lockouts . | . . . . Manual 6 | . 4 . 2 Terminals 10 | . 7 . 3 Fabricators . | . . . . Repair Stations . | . . . . Recycling Units . | . . . . Scanalyzers . | . . . . Garrison Access . | . . . . Terminal Hacks 7 | . 5 . 2 Record 4 | . 4 . . Open Door 1 | . . . 1 Alert Level 1 | . 1 . . Dispatch Records 1 | . . . 1 Fabricator Hacks . | . . . . Repair Station Hacks . | . . . . Recycling Unit Hacks . | . . . . Scanalyzer . | . . . . Garrison Access Hacks . | . . . . Unauthorized Hacks . | . . . . Terminals . | . . . . Fabricators . | . . . . Repair Stations . | . . . . Recycling Units . | . . . . Scanalyzers . | . . . . Garrison Access . | . . . . Data Cores Recovered . | . . . . Used . | . . . . Hacking Detections 1 | . . . 1 Full Trace Events . | . . . . Feedback Events . | . . . . Feedback Blocked . | . . . . Robot Schematics Acquired . | . . . . Robots Built . | . . . . Authchips . | . . . . Time . | . . . . Total Robot Build Rating . | . . . . Part Schematics Acquired . | . . . . Parts Built . | . . . . Authchips . | . . . . Time . | . . . . Total Part Build Rating . | . . . . Parts Repaired . | . . . . Time . | . . . . Parts Recycled . | . . . . Recycled Matter . | . . . . Retrieved Matter . | . . . . Retrieved Components . | . . . . Parts Scanalyzed . | . . . . Part Schematics Acquired . | . . . . Parts Damaged . | . . . . Bothacking | -11 -10 -9 -9 ------------ Run | Yrd Mat Mat Sto Used RIF Installer . | . . . . Robots Hacked . | . . . . Non-combat . | . . . . Combat . | . . . . Robot Hacks Applied . | . . . . Relay Couplers Released . | . . . . Fabnet Peak Effective % . | . . . . Robots Rewired . | . . . . Allies Hacked . | . . . . Hacks Repelled . | . . . . Allies | -11 -10 -9 -9 -------- Run | Yrd Mat Mat Sto Total Allies . | . . . . Largest Group . | . . . . Highest-Rated Group . | . . . . Highest-Rated Ally . | . . . . Total Orders . | . . . . Ally Attacks . | . . . . Total Damage . | . . . . Kills . | . . . . Allies Corrupted . | . . . . Allies Melted . | . . . . Intel | -11 -10 -9 -9 ------- Run | Yrd Mat Mat Sto Robot Analysis Total . | . . . . Derelict Logs Recovered . | . . . . Drone Launches 4 | . . . 4 Drone Recoveries 2 | . . . 2 Exploration | -11 -10 -9 -9 ------------- Run | Yrd Mat Mat Sto Turns Passed 893 | 110 486 184 113 Spaces Moved 585 | 98 263 110 114 Core 71 | 18 . . 53 Treads . | . . . . Legs . | . . . . Wheels 398 | 80 261 57 . Hover 10 | . 2 . 8 Flight 106 | . . 53 53 Fastest Speed 37 | 50 80 37 37 Average Speed 114 | 74 148 121 62 Slowest Speed 900 | 80 900 200 200 Overloaded Moves . | . . . . Propulsion Burnouts . | . . . . Robots Hopped . | . . . . Cave-ins Triggered . | . . . . Exploration Rate (%) 19 | 5 36 11 24 Regions Visited 3 Branch Regions 1 Pre-discovered Areas . | . . . . Known Exits Taken . | . . . . Unknown Exits Taken 3 | 1 1 1 . Scrap Searched . | . . . . Spaces Dug . | . . . . Terrain Destroyed 5 | . 5 . . Melee . | . . . . Projectile . | . . . . AOE 5 | . 5 . . Terrain Rammed . | . . . . Walls Destroyed . | . . . . Machines Disabled . | . . . . Actions | -11 -10 -9 -9 --------- Run | Yrd Mat Mat Sto Total 736 | 118 318 159 141 Wait 45 | . . 43 2 Move 582 | 97 262 109 114 Hop . | . . . . Pick Up 26 | 7 10 2 7 Fast Attach . | . . . . Attach 25 | 5 11 1 8 Detach 3 | . 3 . . Swap 2 | . . 2 . Drop 5 | . 1 2 2 Fire 47 | 9 31 . 7 Melee . | . . . . Ram 1 | . . . 1 Kick . | . . . . Crush . | . . . . Escape Stasis . | . . . . Rewire . | . . . . Trap . | . . . . Miscellaneous . | . . . . Route ------- -11/Scrapyard -10/Materials (discovered 2 exits: [*Mat] / [*Min]) -9/Materials -9/Storage History --------- Turn | Location | Event 2 | -11/Scrapyard | Met Revision 17 84 | -11/Scrapyard | Discovered new exit (range 8) 111 | -11/Scrapyard | Entered Materials 315 | -10/Materials | Build established: Mutant 363 | -10/Materials | Discovered new exit (range 16) 456 | -10/Materials | Lost 3 parts (1p1n1w) 530 | -10/Materials | Discovered new exit (range 18) 584 | -10/Materials | Core integrity fell below 50% 597 | -10/Materials | Entered another Materials area 597 | -9/Materials | Evolved 2 slots: Weapon x2 608 | -9/Materials | Lost 5 parts (1p3n1w) 776 | -9/Materials | Discovered new exit (range 13) 781 | -9/Materials | Entered Storage 838 | -9/Storage | Core integrity fell below 50% 853 | -9/Storage | Core integrity fell below 20% 893 | -9/Storage | Lost 10 parts (2p3n1u4w) 894 | -9/Storage | Destroyed by Y-45 Defender with Beam Rifle Last Messages --------------- 11x Security 2x Surveillance 6x Transport 1x Reinforcement Ion Engine destroyed. Connecting with Door Terminal... >>Open(Door) Sealed Heavy Doors opened. Acquired Drone Bay. Discarded Broken Visual Processing Unit. Drone released from Drone Bay. You have a new controllable ally. Review and give out orders from the Allies menu (F5). Drone released from Drone Bay. Acquired Drone Bay. Move into an ally to swap places with them. Drone released from Drone Bay. Drone destroyed. Drone retrieved by Drone Bay. [Achievement: First Step to Greatness] Map ----- +----------------------------------------------------+ | ??????????????????????????????????????? | | ??????????????????????????????????????? | | ??????????????????????????????????????? | | ??????????????????????????????????????? | | ??????????????????????????????????????? | | ??????????????????????????????????????? | | ??????????????????????????????????????? | | ??????????????????????????????????????? | | ??????????????????????????????????????? | | ??????????????????????????????????????? | | ??????????????????????????????????????? | | ??????????????????????????????????????? | | ??????????????????????????????????????? | | ???????????????????#??????????????????? | | ?????????????????? +??????????????????? | | ????????????????? #??????????????????? | | ??????????????""" #??????????????????? | | ?????????????? #??????????????????? | | ??????????????""" ???????????????????? | | ??????????????""" ????????????????????? | | ??????????????""" ????????????????????? | | ?????????????? ?????????????????????? | | ?????????????##;##???????#????????????? | | ?????????????# #?????? #????????????? | | ?????????##### #????? #????????????? | | ????????## #@ #???? ##???????????? | | ????????#T + n #### #???????????? | | ????????## ###% #???????????? | | ????????# !## #???????????? | | ????????# !## #???????????? | | ????????#! !## gg#### #???????????? | | ????????#! !## Y#????###########?????? | | ??????######## gg########## ####### | | ??????# g | | ??????# T | | ??????# | | ??????######+############## ####### | | ?????# #??????###+###?????? | | ?????# #??????? ??????? | | ?????# """" """" #????? " ????? | | ?????# """" """" #???# "G" """"" ??? | | ?????# """" """" #???# " " """"" #? | | ?????# """" """" #???# """"" ##? | | ?????###############???#############??? | | | | | | | | | | | | | +----------------------------------------------------+ Best States ------------- Heat Dissipation 28 Energy Generation 14 Energy Capacity 250 Matter Stores 300 Matter Capacity 300 Sight Range 18 Robot Scan Range 14 Terrain Scan Density 10 Evasion (%) 62 Item Schematics ----------------- None Robot Schematics ------------------ None Fabricated ------------ Nothing Alien Tech Used ----------------- None Achievements -------------- First Step to Greatness Storm Trooper Uninvited Guest Challenges ------------ None Game ------ Seed SegregatorSurveybotScythe Manual? 0 Play Time 00:43:41 Cumulative 0.6 hours Start 2024.04.05 @ 00:13:49 End 2024.04.05 @ 01:04:15 Sessions 1 Manual Loads 0 Difficulty Rogue Special Mode None Game No. 1 Rogue 1 Adventurer 0 Explorer 0 Win Type - Total 0 Types 0/0/0/0/0/0/0/0/0 Lore% 0 Gallery% 1 Achievement% 1 Wizard Run 0 Options --------- Layout 1 ASCII 0 Keyboard 0 Movement Mouse Keybinds 0 Fullscreen 1 Font 24/Smallcaps Map View 50x35 Zoom Use 0% Tactical HUD 0 Map Filters NONE Filters NONE Steam 0 RUN: 9745c407-f54e-4da0-9327-93bfb70990c5